[Event "Late-Titled-Tuesday-Blitz-April-23-2024"]
[Site "Chess.com"]
[Date "2024.04.23"]
[Round "3"]
[White "ilya2700"]
[Black "Stanbad1"]
[Result "0-1"]
[WhiteElo "2304"]
[BlackElo "2616"]
[TimeControl "180+1"]
[EndTime "14:26:58 PDT"]
[Termination "Stanbad1 won by checkmate"]

1. d4 {[%clk 0:03:00]} 1... Nf6 {[%clk 0:02:59.8]} 2. c4 {[%clk 0:03:00.3]} 2...
c5 {[%clk 0:03:00.2]} 3. d5 {[%clk 0:03:00.5]} 3... b5 {[%clk 0:03:00.6]} 4.
cxb5 {[%clk 0:03:01.4]} 4... a6 {[%clk 0:03:01.1]} 5. b6 {[%clk 0:03:02]} 5...
e6 {[%clk 0:03:00.9]} 6. Nc3 {[%clk 0:03:01.9]} 6... Nxd5 {[%clk 0:03:01.2]} 7.
Nxd5 {[%clk 0:03:02.8]} 7... exd5 {[%clk 0:03:02.1]} 8. Qxd5 {[%clk 0:03:03.5]}
8... Nc6 {[%clk 0:03:02.7]} 9. e4 {[%clk 0:03:04]} 9... Be7 {[%clk 0:03:03]} 10.
Nf3 {[%clk 0:03:03.6]} 10... O-O {[%clk 0:03:02]} 11. Bc4 {[%clk 0:03:04.1]}
11... Rb8 {[%clk 0:03:00.8]} 12. O-O {[%clk 0:03:04.5]} 12... Rxb6 {[%clk
0:03:00.8]} 13. Qh5 {[%clk 0:03:05]} 13... d6 {[%clk 0:02:59.7]} 14. b3 {[%clk
0:03:04.9]} 14... Bf6 {[%clk 0:02:58.3]} 15. Ng5 {[%clk 0:03:05]} 15... Bxg5
{[%clk 0:02:32.1]} 16. Bxg5 {[%clk 0:03:05.9]} 16... Qe8 {[%clk 0:02:32.3]} 17.
Rad1 {[%clk 0:03:00]} 17... Ne5 {[%clk 0:02:31]} 18. Be2 {[%clk 0:02:56.1]}
18... f5 {[%clk 0:02:26.5]} 19. f4 {[%clk 0:02:42]} 19... Nf7 {[%clk 0:02:24.2]}
20. Bc4 {[%clk 0:02:23.5]} 20... Be6 {[%clk 0:02:18.9]} 21. exf5 {[%clk
0:02:17.8]} 21... Bxc4 {[%clk 0:02:16.5]} 22. bxc4 {[%clk 0:02:17.7]} 22... Qe4
{[%clk 0:02:07.8]} 23. f6 {[%clk 0:01:53.8]} 23... g6 {[%clk 0:01:50.3]} 24. Qh3
{[%clk 0:01:28.8]} 24... Rb2 {[%clk 0:01:45.6]} 25. Bh6 {[%clk 0:00:51]} 25...
Nxh6 {[%clk 0:01:42.5]} 26. Qxh6 {[%clk 0:00:51.9]} 26... Qxg2# {[%clk
0:01:42.2]} 0-1

[Event "Late-Titled-Tuesday-Blitz-April-23-2024"]
[Site "Chess.com"]
[Date "2024.04.23"]
[Round "3"]
[White "CaspiIsrael"]
[Black "ATM622"]
[Result "1-0"]
[WhiteElo "2704"]
[BlackElo "2508"]
[TimeControl "180+1"]
[EndTime "14:27:19 PDT"]
[Termination "CaspiIsrael won by resignation"]

1. d4 {[%clk 0:03:00.9]} 1... Nf6 {[%clk 0:02:59.2]} 2. c4 {[%clk 0:03:00]} 2...
e6 {[%clk 0:02:59.6]} 3. Nf3 {[%clk 0:03:00.5]} 3... d5 {[%clk 0:02:59.3]} 4. g3
{[%clk 0:02:59.9]} 4... dxc4 {[%clk 0:02:59.5]} 5. Bg2 {[%clk 0:03:00.3]} 5...
Bd7 {[%clk 0:02:59.9]} 6. O-O {[%clk 0:03:01]} 6... Bc6 {[%clk 0:03:00.2]} 7. a4
{[%clk 0:02:55.9]} 7... a6 {[%clk 0:02:54.4]} 8. Ne5 {[%clk 0:02:33.9]} 8...
Bxg2 {[%clk 0:02:52.6]} 9. Kxg2 {[%clk 0:02:34.5]} 9... Be7 {[%clk 0:02:49.1]}
10. f3 {[%clk 0:02:33.7]} 10... O-O {[%clk 0:02:43.6]} 11. Nxc4 {[%clk
0:02:33.7]} 11... c5 {[%clk 0:02:44.1]} 12. dxc5 {[%clk 0:02:33.6]} 12... Bxc5
{[%clk 0:02:43.2]} 13. Qxd8 {[%clk 0:02:32]} 13... Rxd8 {[%clk 0:02:44.1]} 14.
e4 {[%clk 0:02:31.9]} 14... Nc6 {[%clk 0:02:43.3]} 15. Bf4 {[%clk 0:02:30.4]}
15... Rd4 {[%clk 0:02:34]} 16. Nbd2 {[%clk 0:02:27.4]} 16... Rad8 {[%clk
0:02:27.3]} 17. Be3 {[%clk 0:02:25.3]} 17... b5 {[%clk 0:01:31.5]} 18. axb5
{[%clk 0:02:22.6]} 18... axb5 {[%clk 0:01:31.6]} 19. Bxd4 {[%clk 0:02:14.2]}
19... Rxd4 {[%clk 0:01:31.3]} 20. Nb3 {[%clk 0:02:14.3]} 20... bxc4 {[%clk
0:01:17.4]} 21. Nxd4 {[%clk 0:02:03]} 21... Nxd4 {[%clk 0:01:14.8]} 22. Ra8+
{[%clk 0:02:02.6]} 22... Bf8 {[%clk 0:01:14.2]} 23. Rc1 {[%clk 0:02:02.8]} 23...
Nd7 {[%clk 0:00:30.2]} 24. Rxc4 {[%clk 0:02:01.5]} 24... e5 {[%clk 0:00:27.4]}
25. Rc7 {[%clk 0:01:52.1]} 25... Nc5 {[%clk 0:00:20.6]} 26. Rxc5 {[%clk
0:01:51]} 1-0

[Event "Late-Titled-Tuesday-Blitz-April-23-2024"]
[Site "Chess.com"]
[Date "2024.04.23"]
[Round "3"]
[White "js20000"]
[Black "sergoy"]
[Result "1/2-1/2"]
[WhiteElo "2735"]
[BlackElo "2934"]
[TimeControl "180+1"]
[EndTime "14:27:44 PDT"]
[Termination "Game drawn by agreement"]

1. b3 {[%clk 0:03:00.9]} 1... e5 {[%clk 0:02:59.9]} 2. Bb2 {[%clk 0:03:00]} 2...
Nc6 {[%clk 0:03:00.4]} 3. e3 {[%clk 0:02:57.5]} 3... Nf6 {[%clk 0:03:00.7]} 4.
Bb5 {[%clk 0:02:57.2]} 4... Bd6 {[%clk 0:03:01]} 5. Nf3 {[%clk 0:02:53.4]} 5...
Qe7 {[%clk 0:02:55.1]} 6. O-O {[%clk 0:02:51.6]} 6... e4 {[%clk 0:02:52.6]} 7.
Ne1 {[%clk 0:02:46.8]} 7... Be5 {[%clk 0:02:42.8]} 8. Nc3 {[%clk 0:02:41.7]}
8... d5 {[%clk 0:02:38.5]} 9. f4 {[%clk 0:02:40.3]} 9... Bd6 {[%clk 0:02:35.3]}
10. Ne2 {[%clk 0:02:14.3]} 10... Bd7 {[%clk 0:02:32.4]} 11. c4 {[%clk
0:02:12.9]} 11... dxc4 {[%clk 0:02:09.9]} 12. bxc4 {[%clk 0:02:09.5]} 12... a6
{[%clk 0:02:09.9]} 13. Ba4 {[%clk 0:02:07.4]} 13... h5 {[%clk 0:01:59.4]} 14.
Nc2 {[%clk 0:01:57.6]} 14... h4 {[%clk 0:01:57.9]} 15. Ncd4 {[%clk 0:01:56.1]}
15... h3 {[%clk 0:01:56.5]} 16. g3 {[%clk 0:01:55.5]} 16... O-O {[%clk
0:01:32.6]} 17. Nxc6 {[%clk 0:01:55.1]} 17... bxc6 {[%clk 0:01:32.7]} 18. Nd4
{[%clk 0:01:54.8]} 18... c5 {[%clk 0:01:31.2]} 19. Nc6 {[%clk 0:01:49.1]} 19...
Qe8 {[%clk 0:01:27.7]} 20. Bxf6 {[%clk 0:01:48.7]} 20... gxf6 {[%clk 0:01:22.5]}
21. f5 {[%clk 0:01:33.9]} 21... Bxc6 {[%clk 0:01:14]} 22. Qg4+ {[%clk 0:01:33]}
22... Kh7 {[%clk 0:01:13.9]} 23. Qxh3+ {[%clk 0:01:27.3]} 23... Kg7 {[%clk
0:01:13.3]} 24. Qg4+ {[%clk 0:01:26.9]} 24... Kh7 {[%clk 0:01:13.8]} 25. Qh5+
{[%clk 0:01:12.4]} 25... Kg7 {[%clk 0:01:13.7]} 26. Qg4+ {[%clk 0:01:12.5]}
26... Kh7 {[%clk 0:01:13.9]} 27. Qh5+ {[%clk 0:01:12.6]} 27... Kg7 {[%clk
0:01:12]} 28. Bxc6 {[%clk 0:01:00.1]} 28... Qxc6 {[%clk 0:01:05.5]} 29. Qg4+
{[%clk 0:01:00]} 29... Kh7 {[%clk 0:01:05.8]} 30. Qh4+ {[%clk 0:00:59.9]} 30...
Kg7 {[%clk 0:01:06.4]} 31. Qg4+ {[%clk 0:00:57.2]} 31... Kh7 {[%clk 0:01:06.7]}
32. Qh4+ {[%clk 0:00:56.3]} 1/2-1/2

[Event "Late-Titled-Tuesday-Blitz-April-23-2024"]
[Site "Chess.com"]
[Date "2024.04.23"]
[Round "3"]
[White "Good_Knight_Kiss"]
[Black "xberli"]
[Result "0-1"]
[WhiteElo "2453"]
[BlackElo "2635"]
[TimeControl "180+1"]
[EndTime "14:27:51 PDT"]
[Termination "xberli won by resignation"]

1. e4 {[%clk 0:03:00.9]} 1... e5 {[%clk 0:02:56.1]} 2. Nf3 {[%clk 0:03:00.6]}
2... Nc6 {[%clk 0:02:56]} 3. Bb5 {[%clk 0:03:00.7]} 3... a6 {[%clk 0:02:56.6]}
4. Ba4 {[%clk 0:03:01]} 4... f5 {[%clk 0:02:55]} 5. Nc3 {[%clk 0:02:54.5]} 5...
fxe4 {[%clk 0:02:49.6]} 6. Nxe4 {[%clk 0:02:54.2]} 6... d5 {[%clk 0:02:46.9]} 7.
Nxe5 {[%clk 0:02:51.3]} 7... Qe7 {[%clk 0:02:34.4]} 8. d4 {[%clk 0:01:31]} 8...
b5 {[%clk 0:01:59.2]} 9. Nxc6 {[%clk 0:01:26.9]} 9... Qxe4+ {[%clk 0:01:58.4]}
10. Be3 {[%clk 0:01:12.8]} 10... bxa4 {[%clk 0:01:55.3]} 11. O-O {[%clk
0:01:11.5]} 11... Ne7 {[%clk 0:01:45.2]} 12. Re1 {[%clk 0:01:07.6]} 12... Qg6
{[%clk 0:01:27.3]} 13. Nxe7 {[%clk 0:00:59.7]} 13... Bxe7 {[%clk 0:01:28.2]} 14.
Qf3 {[%clk 0:00:57.2]} 14... Be6 {[%clk 0:01:21.2]} 15. Bf4 {[%clk 0:00:48.7]}
15... O-O {[%clk 0:01:14]} 16. Qg3 {[%clk 0:00:48.9]} 16... Qxg3 {[%clk
0:01:10.2]} 17. Bxg3 {[%clk 0:00:34.5]} 17... Kf7 {[%clk 0:01:07.6]} 18. Re2
{[%clk 0:00:21.9]} 18... Bf6 {[%clk 0:01:05.3]} 19. Rae1 {[%clk 0:00:21.4]}
19... Bf5 {[%clk 0:01:03.4]} 0-1

[Event "Late-Titled-Tuesday-Blitz-April-23-2024"]
[Site "Chess.com"]
[Date "2024.04.23"]
[Round "3"]
[White "LUISMIGUELOV"]
[Black "LuisFSiles"]
[Result "0-1"]
[WhiteElo "2198"]
[BlackElo "2437"]
[TimeControl "180+1"]
[EndTime "14:27:55 PDT"]
[Termination "LuisFSiles won by resignation"]

1. e4 {[%clk 0:02:47.7]} 1... c5 {[%clk 0:02:59.5]} 2. d4 {[%clk 0:02:46]} 2...
cxd4 {[%clk 0:02:59.2]} 3. c3 {[%clk 0:02:34.2]} 3... d5 {[%clk 0:02:58.9]} 4.
exd5 {[%clk 0:02:27.2]} 4... Qxd5 {[%clk 0:02:55.5]} 5. cxd4 {[%clk 0:02:27.3]}
5... Nc6 {[%clk 0:02:53.8]} 6. Nf3 {[%clk 0:02:26.7]} 6... e6 {[%clk 0:02:47.7]}
7. Nc3 {[%clk 0:02:25.5]} 7... Bb4 {[%clk 0:02:47.8]} 8. Be2 {[%clk 0:02:21.6]}
8... Nf6 {[%clk 0:02:47.7]} 9. O-O {[%clk 0:02:21.4]} 9... Qa5 {[%clk
0:02:47.1]} 10. Bd2 {[%clk 0:02:18.1]} 10... O-O {[%clk 0:02:44.7]} 11. a3
{[%clk 0:02:18]} 11... Be7 {[%clk 0:02:39]} 12. Bd3 {[%clk 0:01:52.9]} 12... Rd8
{[%clk 0:02:23.3]} 13. Qc2 {[%clk 0:01:44.6]} 13... Qh5 {[%clk 0:02:20.5]} 14.
Be3 {[%clk 0:01:36.1]} 14... b6 {[%clk 0:02:02.6]} 15. Rad1 {[%clk 0:01:33.7]}
15... Bb7 {[%clk 0:02:01.7]} 16. h3 {[%clk 0:01:32.8]} 16... Rac8 {[%clk
0:02:00.5]} 17. Rfe1 {[%clk 0:01:29.5]} 17... Na5 {[%clk 0:01:50.1]} 18. Be2
{[%clk 0:01:25.8]} 18... Qg6 {[%clk 0:01:27.6]} 19. Qxg6 {[%clk 0:01:23.6]}
19... hxg6 {[%clk 0:01:27.1]} 20. Ne5 {[%clk 0:01:23.8]} 20... Nd5 {[%clk
0:01:16.7]} 21. Ne4 {[%clk 0:01:20.5]} 21... Nxe3 {[%clk 0:00:59.4]} 22. fxe3
{[%clk 0:01:11.1]} 22... Bxe4 {[%clk 0:00:59]} 23. Nxf7 {[%clk 0:00:59]} 23...
Kxf7 {[%clk 0:00:51.1]} 24. Bg4 {[%clk 0:00:55.4]} 24... Bf5 {[%clk 0:00:49.2]}
25. Rf1 {[%clk 0:00:55.8]} 25... Kg8 {[%clk 0:00:48.6]} 0-1

[Event "Late-Titled-Tuesday-Blitz-April-23-2024"]
[Site "Chess.com"]
[Date "2024.04.23"]
[Round "3"]
[White "MagnusCarlsen"]
[Black "BardArtem"]
[Result "1-0"]
[WhiteElo "3227"]
[BlackElo "2821"]
[TimeControl "180+1"]
[EndTime "14:27:59 PDT"]
[Termination "MagnusCarlsen won by resignation"]

1. a3 {[%clk 0:02:59.9]} 1... a5 {[%clk 0:02:49.2]} 2. d4 {[%clk 0:02:58.6]}
2... Nf6 {[%clk 0:02:42.9]} 3. c4 {[%clk 0:02:57.1]} 3... e6 {[%clk 0:02:42.9]}
4. Nc3 {[%clk 0:02:57.2]} 4... d5 {[%clk 0:02:42.8]} 5. cxd5 {[%clk 0:02:57.5]}
5... exd5 {[%clk 0:02:43.7]} 6. Bg5 {[%clk 0:02:57.3]} 6... Be7 {[%clk
0:02:44.1]} 7. e3 {[%clk 0:02:56.5]} 7... O-O {[%clk 0:02:44.7]} 8. Bd3 {[%clk
0:02:56.2]} 8... h6 {[%clk 0:02:44.6]} 9. Bh4 {[%clk 0:02:56]} 9... Re8 {[%clk
0:02:44]} 10. Nge2 {[%clk 0:02:55.9]} 10... c6 {[%clk 0:02:17]} 11. O-O {[%clk
0:02:55.5]} 11... Nbd7 {[%clk 0:02:14.5]} 12. a4 {[%clk 0:02:51.7]} 12... Ne4
{[%clk 0:02:12]} 13. Bxe7 {[%clk 0:02:49.7]} 13... Qxe7 {[%clk 0:02:09.9]} 14.
Re1 {[%clk 0:02:49.8]} 14... Ndf6 {[%clk 0:02:07.9]} 15. f3 {[%clk 0:02:48.7]}
15... Nxc3 {[%clk 0:02:05.1]} 16. Nxc3 {[%clk 0:02:49]} 16... Qb4 {[%clk
0:02:05.6]} 17. Qd2 {[%clk 0:02:45.1]} 17... Bd7 {[%clk 0:02:02.2]} 18. Qf2
{[%clk 0:02:44.1]} 18... Re7 {[%clk 0:01:57.3]} 19. Rad1 {[%clk 0:02:43.9]}
19... Rae8 {[%clk 0:01:40.7]} 20. h3 {[%clk 0:02:44.1]} 20... c5 {[%clk
0:01:39.7]} 21. Bc2 {[%clk 0:02:37.4]} 21... cxd4 {[%clk 0:01:33.3]} 22. Rxd4
{[%clk 0:02:37.2]} 22... Qxd4 {[%clk 0:01:31.1]} 23. exd4 {[%clk 0:02:38.1]}
23... Rxe1+ {[%clk 0:01:31.9]} 24. Kh2 {[%clk 0:02:38.8]} 24... Rc1 {[%clk
0:01:13.9]} 25. Qd2 {[%clk 0:02:33.4]} 25... Rce1 {[%clk 0:01:01.3]} 26. Bd1
{[%clk 0:02:33.3]} 26... R1e7 {[%clk 0:00:55.6]} 27. Qf4 {[%clk 0:02:30.3]}
27... Bc6 {[%clk 0:00:55.3]} 28. Qd6 {[%clk 0:02:30.1]} 28... Re6 {[%clk
0:00:43.6]} 29. Qc7 {[%clk 0:02:29.7]} 29... b6 {[%clk 0:00:42.1]} 30. Bc2
{[%clk 0:02:24.7]} 30... R8e7 {[%clk 0:00:38]} 31. Qf4 {[%clk 0:02:17.8]} 31...
Re1 {[%clk 0:00:35]} 32. Qb8+ {[%clk 0:02:17.2]} 32... Re8 {[%clk 0:00:30.2]}
33. Qxb6 {[%clk 0:02:17.1]} 33... R1e6 {[%clk 0:00:23.1]} 34. Bf5 {[%clk
0:02:15.6]} 34... Rd6 {[%clk 0:00:20.8]} 35. Qxa5 {[%clk 0:02:15.6]} 35... h5
{[%clk 0:00:18.6]} 36. Qc7 {[%clk 0:02:15.1]} 36... Red8 {[%clk 0:00:14.9]} 37.
b4 {[%clk 0:02:14.5]} 37... h4 {[%clk 0:00:14.8]} 38. b5 {[%clk 0:02:13.5]}
38... Be8 {[%clk 0:00:14.2]} 39. b6 {[%clk 0:02:08.3]} 39... g6 {[%clk
0:00:13.8]} 40. b7 {[%clk 0:02:08.5]} 40... gxf5 {[%clk 0:00:07.9]} 41. b8=R
{[%clk 0:02:07.3]} 1-0

[Event "Late-Titled-Tuesday-Blitz-April-23-2024"]
[Site "Chess.com"]
[Date "2024.04.23"]
[Round "3"]
[White "Akhayan"]
[Black "ritanovikova"]
[Result "1-0"]
[WhiteElo "2418"]
[BlackElo "2176"]
[TimeControl "180+1"]
[EndTime "14:28:00 PDT"]
[Termination "Akhayan won by resignation"]

1. e4 {[%clk 0:03:00.9]} 1... d5 {[%clk 0:02:54.8]} 2. exd5 {[%clk 0:03:00.4]}
2... Qxd5 {[%clk 0:02:54.3]} 3. Nc3 {[%clk 0:03:00.8]} 3... Qd6 {[%clk 0:02:54]}
4. d4 {[%clk 0:03:00.9]} 4... Nf6 {[%clk 0:02:54]} 5. g3 {[%clk 0:03:01.3]} 5...
e6 {[%clk 0:02:53.5]} 6. Bg2 {[%clk 0:03:01.9]} 6... c6 {[%clk 0:02:51.1]} 7.
Bf4 {[%clk 0:02:59.3]} 7... Qb4 {[%clk 0:02:50.2]} 8. Ne2 {[%clk 0:02:59]} 8...
Nbd7 {[%clk 0:02:46.1]} 9. O-O {[%clk 0:02:58.9]} 9... Nb6 {[%clk 0:02:41.9]}
10. a3 {[%clk 0:02:57.9]} 10... Qe7 {[%clk 0:02:41.5]} 11. a4 {[%clk 0:02:44.4]}
11... Nbd5 {[%clk 0:02:41]} 12. Nxd5 {[%clk 0:02:42.7]} 12... Nxd5 {[%clk
0:02:40.6]} 13. Bd2 {[%clk 0:02:38.3]} 13... Kd8 {[%clk 0:02:37]} 14. c4 {[%clk
0:02:35.2]} 14... Nf6 {[%clk 0:02:36.4]} 15. Bg5 {[%clk 0:02:28.3]} 15... h6
{[%clk 0:02:35.6]} 16. Bf4 {[%clk 0:02:18.2]} 16... g5 {[%clk 0:02:29]} 17. Be5
{[%clk 0:02:17.7]} 17... Bg7 {[%clk 0:02:27.9]} 18. d5 {[%clk 0:02:16.4]} 18...
cxd5 {[%clk 0:02:19.7]} 19. cxd5 {[%clk 0:02:13]} 19... Ke8 {[%clk 0:02:14.4]}
20. dxe6 {[%clk 0:01:57.1]} 20... fxe6 {[%clk 0:02:12.4]} 21. Rc1 {[%clk
0:01:42.3]} 21... Nd7 {[%clk 0:01:53.3]} 22. Bxg7 {[%clk 0:01:29.4]} 22... Qxg7
{[%clk 0:01:54.2]} 23. Nd4 {[%clk 0:01:29.3]} 23... Nf6 {[%clk 0:01:38.9]} 24.
Re1 {[%clk 0:01:29]} 24... Qf7 {[%clk 0:01:36.4]} 25. Nf5 {[%clk 0:01:27.8]}
25... Kf8 {[%clk 0:01:31.3]} 26. Qd6+ {[%clk 0:01:25.8]} 26... Kg8 {[%clk
0:01:29.4]} 27. Rc7 {[%clk 0:01:22.9]} 27... Qf8 {[%clk 0:01:22.1]} 28. Ne7+
{[%clk 0:01:18.9]} 28... Kf7 {[%clk 0:01:14.5]} 29. Nxc8+ {[%clk 0:01:16.4]}
29... Kg6 {[%clk 0:01:14.3]} 30. Qd3+ {[%clk 0:01:06.5]} 30... Kh5 {[%clk
0:01:10.2]} 31. g4+ {[%clk 0:01:02.2]} 31... Nxg4 {[%clk 0:01:08.1]} 32. Qh3+
{[%clk 0:01:00.8]} 32... Kg6 {[%clk 0:01:06.8]} 33. Qxg4 {[%clk 0:00:53.8]} 1-0

[Event "Late-Titled-Tuesday-Blitz-April-23-2024"]
[Site "Chess.com"]
[Date "2024.04.23"]
[Round "3"]
[White "KebabJangles"]
[Black "wanyaland"]
[Result "0-1"]
[WhiteElo "2212"]
[BlackElo "2442"]
[TimeControl "180+1"]
[EndTime "14:28:04 PDT"]
[Termination "wanyaland won by resignation"]

1. d4 {[%clk 0:03:00.9]} 1... d5 {[%clk 0:01:33.7]} 2. c4 {[%clk 0:02:35.3]}
2... e6 {[%clk 0:01:29.9]} 3. Nf3 {[%clk 0:02:34.9]} 3... Nf6 {[%clk 0:01:29.5]}
4. Nc3 {[%clk 0:02:33.7]} 4... c6 {[%clk 0:01:29.5]} 5. Bf4 {[%clk 0:02:29.2]}
5... Nbd7 {[%clk 0:01:28.8]} 6. e3 {[%clk 0:02:29.2]} 6... Be7 {[%clk
0:01:28.2]} 7. h3 {[%clk 0:02:28.5]} 7... O-O {[%clk 0:01:27.8]} 8. Bd3 {[%clk
0:02:28.5]} 8... dxc4 {[%clk 0:01:27.6]} 9. Bxc4 {[%clk 0:02:29.4]} 9... b5
{[%clk 0:01:27.8]} 10. Bd3 {[%clk 0:02:29.5]} 10... a6 {[%clk 0:01:28.2]} 11. a4
{[%clk 0:02:29]} 11... b4 {[%clk 0:01:28.2]} 12. Ne4 {[%clk 0:02:19.2]} 12... c5
{[%clk 0:01:28.6]} 13. dxc5 {[%clk 0:02:17.6]} 13... Nxc5 {[%clk 0:01:28.6]} 14.
Nxc5 {[%clk 0:02:17.4]} 14... Bxc5 {[%clk 0:01:29.5]} 15. O-O {[%clk 0:02:17]}
15... Bb7 {[%clk 0:01:29.6]} 16. Qe2 {[%clk 0:02:15.8]} 16... Qe7 {[%clk
0:01:28.2]} 17. Rfd1 {[%clk 0:02:14.9]} 17... Nd5 {[%clk 0:01:27.8]} 18. Bg3
{[%clk 0:02:13.3]} 18... f6 {[%clk 0:01:25.5]} 19. Rac1 {[%clk 0:02:13.1]} 19...
e5 {[%clk 0:01:24.4]} 20. Qc2 {[%clk 0:02:10.6]} 20... Rac8 {[%clk 0:01:21.8]}
21. Bxh7+ {[%clk 0:02:10.3]} 21... Kh8 {[%clk 0:01:22.3]} 22. Bg6 {[%clk
0:02:07.3]} 22... Bxe3 {[%clk 0:01:18.4]} 23. Qf5 {[%clk 0:02:07.1]} 23... Rxc1
{[%clk 0:01:08.7]} 24. fxe3 {[%clk 0:02:02.4]} 24... Rxd1+ {[%clk 0:01:07.5]}
25. Kh2 {[%clk 0:02:02.8]} 25... Nf4 {[%clk 0:00:48.9]} 26. Bxf4 {[%clk
0:01:58.1]} 26... Bxf3 {[%clk 0:00:47.6]} 27. gxf3 {[%clk 0:01:48.2]} 27... Rd2+
{[%clk 0:00:47.1]} 28. Kg3 {[%clk 0:01:22.3]} 28... exf4+ {[%clk 0:00:40.5]} 29.
exf4 {[%clk 0:01:21.6]} 29... Qe1+ {[%clk 0:00:36.4]} 30. Kg4 {[%clk 0:01:21.9]}
30... Rg2+ {[%clk 0:00:36.2]} 31. Kh5 {[%clk 0:01:22.1]} 31... Qg3 {[%clk
0:00:31.6]} 32. Qg4 {[%clk 0:01:18.6]} 32... Qxg4+ {[%clk 0:00:30.2]} 33. fxg4
{[%clk 0:01:19.5]} 33... Rxb2 {[%clk 0:00:30.6]} 0-1

[Event "Late-Titled-Tuesday-Blitz-April-23-2024"]
[Site "Chess.com"]
[Date "2024.04.23"]
[Round "3"]
[White "dropstoneDP"]
[Black "Sokoloco"]
[Result "1/2-1/2"]
[WhiteElo "3023"]
[BlackElo "2763"]
[TimeControl "180+1"]
[EndTime "14:28:09 PDT"]
[Termination "Game drawn by repetition"]

1. e4 {[%clk 0:03:00.9]} 1... d6 {[%clk 0:03:00.6]} 2. d4 {[%clk 0:02:59.7]}
2... g6 {[%clk 0:03:01.2]} 3. Nf3 {[%clk 0:02:59.7]} 3... Bg7 {[%clk 0:03:01.9]}
4. Be2 {[%clk 0:03:00.3]} 4... Nf6 {[%clk 0:03:00.7]} 5. Nc3 {[%clk 0:03:00.6]}
5... O-O {[%clk 0:02:59.9]} 6. O-O {[%clk 0:03:01.1]} 6... a6 {[%clk 0:02:59.3]}
7. a4 {[%clk 0:02:59.9]} 7... Nc6 {[%clk 0:02:58.9]} 8. Bg5 {[%clk 0:03:00.4]}
8... h6 {[%clk 0:02:57.4]} 9. Be3 {[%clk 0:03:00.3]} 9... e5 {[%clk 0:02:57.2]}
10. dxe5 {[%clk 0:03:00]} 10... Ng4 {[%clk 0:02:55.5]} 11. Bc1 {[%clk
0:02:52.8]} 11... Ngxe5 {[%clk 0:02:35.8]} 12. Nxe5 {[%clk 0:02:51.7]} 12...
dxe5 {[%clk 0:02:12.5]} 13. Qxd8 {[%clk 0:02:52.6]} 13... Rxd8 {[%clk
0:02:13.1]} 14. Nd5 {[%clk 0:02:47.7]} 14... Rd7 {[%clk 0:02:13.8]} 15. c3
{[%clk 0:02:36.1]} 15... Ne7 {[%clk 0:02:06.6]} 16. Nxe7+ {[%clk 0:02:31.7]}
16... Rxe7 {[%clk 0:02:07.5]} 17. Bc4 {[%clk 0:02:30.1]} 17... Be6 {[%clk
0:02:03.9]} 18. Bxe6 {[%clk 0:02:29.3]} 18... Rxe6 {[%clk 0:02:04.8]} 19. Rd1
{[%clk 0:02:29.1]} 19... Kf8 {[%clk 0:01:47.2]} 20. Be3 {[%clk 0:02:27.5]} 20...
Ke8 {[%clk 0:01:47.1]} 21. g4 {[%clk 0:02:22.9]} 21... h5 {[%clk 0:01:40.4]} 22.
h3 {[%clk 0:02:17.7]} 22... Rd8 {[%clk 0:01:28.4]} 23. Rxd8+ {[%clk 0:02:15.3]}
23... Kxd8 {[%clk 0:01:29.3]} 24. Rd1+ {[%clk 0:02:15]} 24... Ke8 {[%clk
0:01:28.8]} 25. Kg2 {[%clk 0:02:11.6]} 25... hxg4 {[%clk 0:01:28.8]} 26. hxg4
{[%clk 0:02:12.5]} 26... Rd6 {[%clk 0:01:29.3]} 27. Rxd6 {[%clk 0:02:09.2]}
27... cxd6 {[%clk 0:01:30.2]} 28. c4 {[%clk 0:02:06.1]} 28... Bf6 {[%clk
0:01:15.4]} 29. b4 {[%clk 0:02:04.5]} 29... Bd8 {[%clk 0:01:15.9]} 30. Kf1
{[%clk 0:01:48.7]} 30... Kd7 {[%clk 0:01:13.5]} 31. Ke2 {[%clk 0:01:48.8]} 31...
a5 {[%clk 0:01:01.2]} 32. b5 {[%clk 0:01:48.3]} 32... g5 {[%clk 0:00:53.4]} 33.
c5 {[%clk 0:01:38.3]} 33... dxc5 {[%clk 0:00:53]} 34. Bxc5 {[%clk 0:01:39.2]}
34... b6 {[%clk 0:00:52.9]} 35. Be3 {[%clk 0:01:38.8]} 35... f6 {[%clk
0:00:52.2]} 36. Kd3 {[%clk 0:01:39.1]} 36... Ke6 {[%clk 0:00:52.9]} 37. Kc4
{[%clk 0:01:39.7]} 37... Bc7 {[%clk 0:00:53.6]} 38. f3 {[%clk 0:01:40]} 38...
Bd8 {[%clk 0:00:54]} 39. Bc1 {[%clk 0:01:29.5]} 39... Bc7 {[%clk 0:00:53.3]} 40.
Ba3 {[%clk 0:01:29.3]} 40... Bd6 {[%clk 0:00:52.1]} 41. Bc1 {[%clk 0:01:26.5]}
41... Bc5 {[%clk 0:00:49.7]} 42. Bd2 {[%clk 0:01:25.5]} 42... Bf2 {[%clk
0:00:49.9]} 43. Bc3 {[%clk 0:01:22.5]} 43... Be3 {[%clk 0:00:47.8]} 44. Be1
{[%clk 0:01:22.1]} 44... Bg1 {[%clk 0:00:46.6]} 45. Bc3 {[%clk 0:01:22.2]} 45...
Be3 {[%clk 0:00:45.9]} 46. Be1 {[%clk 0:01:22.2]} 46... Bg1 {[%clk 0:00:46.1]}
47. Bc3 {[%clk 0:01:22.1]} 47... Be3 {[%clk 0:00:46.1]} 1/2-1/2